bitfinex/quotes_ETHUSD_20251021
["timestamp","ask_amount","ask_price","bid_price","bid_amount"]
[1761014861362,7.001887,3944.2,3944.1,0.6687]
[1761014861749,3.215,3944.2,3944.1,0.6687]
[1761014862253,4.943,3944.2,3944.1,0.6687]
[1761014862675,3.215,3944.2,3944.1,0.6687]
[1761014863047,5.223257,3944.2,3944.1,0.6687]
[1761014863298,5.223257,3944.2,3944.1,0.002]
[1761014863585,19.35034408,3944.2,3944.1,0.002]
[1761014863783,18.95277808,3944.2,3944.1,0.002]
[1761014864082,20.68077808,3944.2,3944.1,0.002]
[1761014864484,21.00870008,3944.2,3944.1,0.002]
[1761014865050,8.00069408,3944.2,3944.1,0.002]
[1761014865256,9.77088638,3944.2,3944.1,0.4386]
[1761014865579,18.24041038,3944.2,3944.1,0.002]
[1761014866568,21.31869238,3944.2,3944.1,0.002]
[1761014867196,10.78003338,3944.2,3944.1,0.002]
[1761014867373,7.121169,3944.2,3944.1,0.4386]
[1761014867574,4.943,3944.2,3944.1,0.4386]
[1761014868190,7.716724,3944.2,3944.1,0.4386]
[1761014868390,7.140445,3944.2,3944.1,0.4386]
[1761014868691,4.943,3944.2,3944.1,0.4386]
[1761014869055,9.812772,3944.2,3944.1,0.4386]
[1761014869259,12.34814038,3944.2,3944.1,0.4386]
[1761014869468,7.47836838,3944.2,3944.1,0.4386]
[1761014869694,14.48465538,3944.2,3944.1,0.4386]
[1761014870280,14.26551138,3944.2,3944.1,0.4386]
[1761014870476,4.943,3944.2,3944.1,0.4386]
[1761014870892,4.98719412,3944.2,3944.1,0.4386]
[1761014871098,3.215,3944.2,3944.1,0.4386]
[1761014871893,4.943,3944.2,3944.1,0.4386]
[1761014873569,4.943,3944.2,3944.1,0.002]
[1761014873775,22.25336838,3944.2,3944.1,0.002]
[1761014873970,10.80174638,3944.2,3944.1,0.4386]
[1761014874596,4.943,3944.2,3944.1,0.4386]
[1761014875769,23.32965538,3944.2,3944.1,0.002]
[1761014875969,24.08200698,3944.2,3944.1,0.002]
[1761014876202,24.53620698,3944.2,3944.1,0.002]
[1761014876506,11.0656846,3944.2,3944.1,0.002]
[1761014876803,5.6953516,3944.2,3944.1,0.6687]
[1761014877018,4.943,3944.2,3944.1,0.6687]
[1761014877316,7.47836838,3944.2,3944.1,0.6687]
[1761014877675,19.79244938,3944.2,3944.1,0.002]
[1761014878401,11.80056138,3944.2,3944.1,0.002]
[1761014878607,10.61976138,3944.2,3944.1,0.002]
[1761014878792,8.084393,3944.2,3944.1,0.002]
[1761014879101,4.943,3944.2,3944.1,0.4386]
[1761014879905,4.943,3944.2,3944.1,0.002]
[1761014880129,7.47836838,3944.2,3944.1,0.002]
[1761014880327,4.943,3944.2,3944.1,0.002]
[1761014881199,7.47836838,3944.2,3944.1,0.002]
[1761014881524,19.35871585,3944.2,3944.1,0.002]
[1761014881721,35.20404885,3944.2,3944.1,0.002]
[1761014882023,20.27113985,3944.2,3944.1,0.002]
[1761014882343,19.30516185,3944.2,3944.1,0.002]
[1761014882501,18.93327585,3944.2,3944.1,0.002]
[1761014882889,20.96257585,3944.2,3944.1,0.002]
[1761014883092,21.41337585,3944.2,3944.1,0.002]
[1761014883335,21.92025585,3944.2,3944.1,0.002]
[1761014883826,37.54261785,3944.2,3944.1,0.002]
[1761014884128,23.53418453,3943.8,3943.7,0.002]
[1761014884328,29.1580521,3943.8,3943.7,0.002]
[1761014884542,29.6079521,3943.8,3943.7,0.002]
[1761014884704,25.23998974,3943.4,3943.3,0.002]
[1761014885022,24.38639374,3943.4,3943.3,0.002]
[1761014885222,23.83234574,3943.4,3943.3,0.002]
[1761014885403,24.83822621,3943.4,3943.3,0.002]
[1761014885600,2.53638114,3942.7,3942.0,0.2166]
[1761014885926,1.728,3942.4,3942.0,0.2166]
[1761014886121,1.728,3942.4,3942.0,0.6729]
[1761014886122,1.728,3942.2,3942.0,0.6729]
[1761014886725,1.728,3942.2,3941.7,0.4563]
[1761014887023,4.26466229,3942.2,3941.7,0.4563]
[1761014887523,1.728,3942.2,3941.7,0.4563]
[1761014888721,1.728,3942.2,3942.1,0.2203]
[1761014889151,1.728,3942.2,3942.1,0.6766]
[1761014890155,1.728,3942.2,3941.6,0.2166]
[1761014890156,1.728,3942.2,3941.8,0.4563]
[1761014893528,1.728,3942.2,3942.1,0.2203]
[1761014894044,1.728,3942.2,3942.1,0.6766]
[1761014895446,3.214,3942.3,3942.1,0.6766]
[1761014895637,0.04421315,3942.7,3942.2,0.48166654]
[1761014895841,0.04421315,3942.7,3942.3,2.53659031]
[1761014895842,2.14821315,3942.7,3942.3,2.53659031]
[1761014896217,2.14821315,3942.7,3942.4,0.4581]
[1761014896494,2.104,3942.7,3942.4,2.99461025]
[1761014896994,2.104,3942.7,3942.5,0.4581]
[1761014897295,2.58003567,3943.5,3942.5,0.48346461]
[1761014897296,0.04420725,3943.5,3942.5,0.48346461]
[1761014897596,0.1264,3942.8,3942.7,2.53633296]
[1761014897892,0.1264,3942.8,3942.7,2.83831265]
[1761014898092,0.1264,3942.8,3942.7,3.29641265]
[1761014899795,0.1264,3942.8,3942.5,0.4581]
[1761014899991,2.53614145,3943.0,3942.2,0.4581]
[1761014900194,2.53614145,3943.0,3942.3,0.4581]
[1761014900195,0.1264,3942.5,3942.3,0.4581]
[1761014900553,0.1264,3942.5,3942.4,2.53652597]
[1761014900985,0.1264,3942.5,3942.4,2.99462597]
[1761014901170,0.1264,3942.5,3942.4,2.99662597]
[1761014901995,0.1264,3942.5,3942.4,0.4601]
[1761014902559,0.1264,3942.5,3942.4,2.99662597]
[1761014903960,0.1264,3942.5,3942.4,0.4601]
[1761014905061,0.1264,3942.5,3942.4,2.99662597]
[1761014905261,0.1264,3942.5,3942.4,3.57198368]
[1761014906903,0.1264,3942.5,3942.4,2.53852597]
[1761014907102,0.39780376,3943.3,3942.4,0.002]
[1761014907285,0.39780376,3943.3,3942.5,2.99456045]
[1761014907476,2.53601136,3943.2,3942.5,0.4581]
[1761014907799,3.48798218,3943.2,3942.5,0.4581]
[1761014908291,0.95197082,3943.2,3942.5,0.4581]
[1761014908496,1.728,3943.1,3942.5,0.4581]
[1761014908901,0.95197082,3943.2,3942.5,2.99455357]
[1761014909707,0.95197082,3943.2,3942.6,0.4581]
[1761014910204,3.48798724,3943.2,3942.6,0.4581]
[1761014911326,0.95197082,3943.2,3942.6,0.4581]
[1761014911496,1.729,3943.4,3942.6,2.99448634]
[1761014911497,4.26489625,3943.4,3942.6,2.99448634]
[1761014911893,1.728,3943.2,3942.6,2.99448634]
[1761014912226,4.26402626,3943.2,3942.6,0.4581]
[1761014912392,1.728,3943.2,3942.6,0.4581]
[1761014914028,4.26401844,3943.2,3942.6,0.4581]
[1761014914630,1.728,3943.2,3942.6,0.4581]
[1761014915500,4.942,3943.2,3942.6,0.4581]
[1761014917127,4.942,3943.2,3942.5,2.53645668]
[1761014917428,4.942,3943.2,3942.7,3.00672216]
[1761014917627,4.942,3943.2,3942.7,0.4704]
[1761014917839,0.1264,3942.7,3942.6,2.53638218]
[1761014919052,0.1264,3942.7,3942.6,3.00678218]
[1761014922727,0.1264,3942.7,3942.6,0.4704]
[1761014922920,0.1264,3942.7,3942.5,0.002]
[1761014923321,0.1264,3942.7,3942.6,2.5363973]
[1761014923652,0.1264,3942.7,3942.6,3.0067973]
[1761014924218,0.1264,3942.7,3942.5,2.53844559]
[1761014924421,0.1264,3942.7,3942.5,3.00884559]
[1761014925054,0.1264,3942.7,3942.6,3.0067973]
[1761014925458,0.1264,3942.7,3942.6,2.5363973]
[1761014925952,0.1264,3942.7,3942.5,0.4724]
[1761014926148,0.1264,3942.7,3942.5,0.002]
[1761014927169,4.6929658,3943.0,3942.5,0.002]
[1761014927485,1.22951658,3942.9,3942.5,0.002]
[1761014927855,0.80371658,3942.9,3942.5,0.002]
[1761014928062,0.4258,3942.8,3942.5,0.002]
[1761014928789,0.80371658,3942.9,3942.5,0.002]
[1761014929177,0.80371658,3942.9,3942.5,3.00882161]
[1761014929490,1.728,3943.1,3942.5,3.00882161]
[1761014930059,1.728,3943.1,3942.6,0.49576397]
[1761014930264,1.728,3943.1,3942.6,3.00673666]
[1761014930620,0.001,3943.3,3942.7,2.53627253]
[1761014930817,0.1264,3942.7,3942.6,6.22078496]
[1761014931094,0.1264,3942.7,3942.6,3.214]
[1761014931279,0.1264,3942.7,3942.6,0.4704]
[1761014931485,0.1264,3942.7,3942.6,3.0067973]
[1761014931687,0.1264,3942.7,3942.5,2.53842254]
[1761014932101,0.1264,3942.7,3942.6,0.4704]
[1761014932871,0.1264,3942.7,3942.5,0.002]
[1761014933188,0.1264,3942.7,3942.5,2.53843435]
[1761014933496,0.1264,3942.7,3942.5,3.00883435]
[1761014933658,0.1264,3942.7,3942.5,0.002]
[1761014934391,0.1264,3942.7,3942.5,2.53844891]
[1761014935097,0.1264,3942.7,3942.6,0.4704]
[1761014936205,0.1264,3942.7,3942.6,3.0067973]
[1761014937983,0.1264,3942.7,3942.6,2.5363973]
[1761014938310,0.1264,3942.7,3942.5,2.53845344]
[1761014938512,0.1264,3942.7,3942.5,3.00885344]
[1761014939379,0.1264,3942.7,3942.5,2.53845344]
[1761014939912,0.1264,3942.7,3942.5,0.002]
[1761014940069,0.86773232,3942.6,3942.5,0.002]
[1761014940270,0.4145,3942.6,3942.5,0.002]
[1761014941608,0.1264,3942.7,3942.5,0.002]
[1761014942998,0.4518,3942.6,3942.5,0.002]
[1761014944276,0.1264,3942.7,3942.5,0.002]
[1761014945575,1.09534,3942.7,3942.5,0.002]
[1761014945775,4.2643973,3942.6,3942.5,0.002]
[1761014945975,4.7161973,3942.6,3942.5,0.002]
[1761014946688,2.1798,3942.6,3942.5,0.002]
[1761014946901,1.728,3942.6,3942.5,0.002]
[1761014947610,2.1798,3942.6,3942.5,0.002]
[1761014948198,2.59566765,3942.6,3942.5,0.002]
[1761014948590,1.728,3942.6,3942.5,0.002]
[1761014951321,0.1264,3942.7,3942.5,0.002]
[1761014959394,0.4449,3942.6,3942.5,0.002]
[1761014959593,2.9812973,3942.6,3942.5,0.002]
[1761014960220,7.9222973,3942.6,3942.5,0.002]
[1761014960391,9.1646871,3942.6,3942.5,0.002]
[1761014963422,9.6715671,3942.6,3942.5,0.002]
[1761014963625,38.8745311,3942.6,3942.5,0.002]
[1761014963828,33.2658571,3942.6,3942.5,0.002]
[1761014964219,30.8208041,3942.6,3942.5,0.002]
[1761014964423,28.0858041,3942.6,3942.5,0.002]
[1761014964815,25.8316771,3942.6,3942.5,0.002]
[1761014965542,27.2297811,3942.6,3942.5,0.002]
[1761014966602,38.7790611,3942.6,3942.5,0.002]
[1761014966833,36.8453871,3942.6,3942.5,0.002]
[1761014967556,38.6804331,3942.6,3942.5,0.002]
[1761014967906,35.0315901,3942.6,3942.5,0.002]
[1761014968536,35.3582891,3942.6,3942.5,0.002]
[1761014969331,27.28013658,3942.6,3942.5,0.002]
[1761014969701,27.90313458,3942.6,3942.5,0.002]
[1761014969912,6.18428058,3942.6,3942.5,0.002]
[1761014970112,11.37486558,3942.6,3942.5,0.002]
[1761014970434,13.27936858,3942.6,3942.5,0.002]
[1761014970832,10.77983058,3942.6,3942.5,0.002]
[1761014971240,7.00104348,3942.6,3942.5,0.002]
[1761014971459,2.53602605,3943.2,3942.5,0.002]
[1761014971460,2.53585828,3943.5,3942.5,0.4514]
[1761014971758,3.25720575,3943.2,3942.7,2.53629176]
[1761014971953,0.04420575,3943.2,3942.6,0.02536397]
[1761014972143,0.04420575,3943.2,3943.1,0.2289]
[1761014972655,0.04420575,3943.2,3942.5,0.002]
[1761014972656,0.48580575,3943.2,3942.5,0.002]
[1761014972854,3.654461,3943.1,3942.5,0.002]
[1761014973237,1.728,3943.0,3942.5,0.002]
[1761014973434,2.96320575,3943.2,3942.5,0.002]
[1761014973435,2.1696,3943.1,3942.5,0.002]
[1761014973734,1.728,3941.7,3940.9,0.2301]
[1761014973934,1.728,3941.3,3940.9,0.2301]
[1761014974134,0.1175,3942.6,3941.0,0.02537427]
[1761014974321,0.04421542,3942.2,3941.4,2.53711173]
[1761014974526,1.728,3942.0,3941.6,2.53697853]
[1761014974722,1.728,3942.0,3941.5,0.4494]
[1761014974953,1.728,3942.0,3941.5,2.98648815]
[1761014975156,1.728,3942.0,3941.5,0.4494]
[1761014975348,1.728,3941.8,3941.1,2.98670448]
[1761014975555,3.213,3941.7,3941.1,2.98670448]
[1761014975854,3.213,3941.7,3941.2,0.4494]
[1761014976354,1.728,3941.5,3940.9,3.21698131]
[1761014976738,1.728,3941.5,3941.0,0.4494]
[1761014977557,1.728,3941.5,3940.9,0.2301]
[1761014977858,2.53711026,3941.5,3940.9,0.2301]
[1761014978154,1.728,3941.6,3940.9,0.6795]
[1761014978353,1.728,3941.6,3940.9,3.2169785]
[1761014978655,4.26504161,3941.6,3940.9,0.6795]
[1761014978870,4.2650486,3941.6,3940.9,0.6795]
[1761014979263,1.728,3941.6,3940.9,0.6795]
[1761014979463,1.728,3941.4,3940.9,0.2301]
[1761014979763,1.728,3941.2,3940.7,0.4494]
[1761014980168,1.728,3941.2,3940.8,2.53754855]
[1761014980367,1.728,3941.2,3940.9,2.53747562]
[1761014980669,1.728,3941.2,3940.7,0.4494]
[1761014980847,1.728,3941.2,3940.7,2.98702009]
[1761014981246,6.431,3943.7,3940.8,0.4494]
[1761014981451,3.694544,3941.6,3940.8,0.4494]
[1761014981755,2.53714954,3941.5,3940.6,2.53768441]
[1761014981961,2.53714954,3941.5,3940.7,2.53761867]
[1761014981962,4.941,3941.4,3940.7,2.53761867]
[1761014982161,4.941,3941.4,3940.6,2.53767786]
[1761014982476,4.26531841,3941.2,3940.3,0.6801]
[1761014982677,2.53731841,3941.2,3940.3,0.6801]
[1761014982878,1.728,3941.0,3940.3,0.6801]
[1761014983056,3.5849984,3941.2,3940.3,0.6801]
[1761014983057,1.728,3940.8,3940.3,0.6801]
[1761014983382,1.728,3940.8,3940.3,3.21797252]
[1761014983579,1.728,3940.8,3940.4,2.98720025]
[1761014983886,0.1264,3940.6,3940.4,2.98720025]
[1761014984246,0.1264,3940.6,3940.4,0.4494]
[1761014984578,0.1264,3940.6,3940.0,3.21635765]
[1761014985085,0.1264,3940.6,3940.2,2.53793851]
[1761014985249,0.1264,3940.6,3940.3,0.4494]
[1761014985446,0.1264,3940.6,3940.5,2.53774901]
[1761014985852,0.1264,3940.6,3940.5,0.4494]
[1761014986484,0.1264,3940.6,3940.5,3.0125265]
[1761014987003,0.1264,3940.6,3940.5,2.98714901]
[1761014988669,0.1264,3940.6,3940.5,0.4494]
[1761014989064,0.1264,3940.6,3940.1,2.98735088]
[1761014989266,0.1264,3940.6,3940.2,0.4494]
[1761014989900,0.1264,3940.6,3940.2,2.987329]
[1761014990305,0.1264,3940.6,3940.3,0.4494]
[1761014993912,0.1264,3940.6,3940.1,0.002]
[1761014994116,0.1264,3940.6,3940.2,0.4494]
[1761014994414,1.728,3940.4,3940.1,0.002]
[1761014994712,5.75179094,3940.5,3940.1,0.002]
[1761014994713,1.728,3940.2,3940.1,0.002]
[1761014995014,2.53788633,3940.3,3940.1,0.002]
[1761014995315,1.728,3940.4,3940.1,0.002]
[1761014995618,4.26585614,3940.4,3940.1,0.002]
[1761014996297,5.39392631,3940.4,3940.1,0.002]
[1761014996521,2.53787782,3940.3,3940.1,0.002]
[1761014996699,2.99637782,3940.3,3940.1,0.002]
[1761014996887,2.99644223,3940.2,3940.1,0.002]
[1761014998899,7.93844223,3940.2,3940.1,0.002]
[1761014999095,9.0988757,3940.2,3940.1,0.002]
[1761015000642,19.5684007,3940.2,3940.1,0.002]
[1761015000786,18.74204977,3940.2,3940.1,0.002]
[1761015001122,18.74204977,3940.2,3940.1,0.2159]
[1761015001123,1.77223507,3940.2,3940.1,0.2159]
[1761015001328,3.214,3940.7,3940.1,0.6438]
[1761015001576,3.214,3940.7,3940.2,0.02537942]
[1761015001777,1.728,3940.6,3940.2,0.4279]
[1761015002054,1.728,3941.0,3940.3,2.53787516]
[1761015002354,3.214,3941.1,3940.3,0.57197187]
[1761015002543,3.214,3941.1,3940.6,2.5376724]
[1761015002939,1.728,3941.0,3940.7,0.4279]
[1761015003621,0.04422591,3941.4,3940.8,0.02537555]
[1761015003955,1.728,3941.2,3940.7,0.4279]
[1761015004318,0.1264,3941.0,3940.7,0.4279]
[1761015004756,0.1264,3941.0,3940.9,2.53749143]
[1761015005260,0.1264,3941.0,3940.9,2.96539143]
[1761015005442,0.1264,3941.0,3940.9,0.4279]
[1761015006259,0.1264,3941.0,3940.9,2.96539143]
[1761015006825,0.1264,3941.0,3940.9,0.4279]
[1761015007662,0.1264,3941.0,3940.9,2.96539143]
[1761015008450,0.1264,3941.2,3941.0,2.53741164]
[1761015008650,0.1264,3941.2,3940.8,0.4279]
[1761015008829,0.1264,3941.2,3940.7,2.53760982]
[1761015009043,0.1264,3941.2,3940.7,2.96550982]
[1761015009349,0.1264,3941.2,3940.8,2.9654529]
[1761015009745,0.1264,3941.2,3940.9,0.4279]
[1761015009945,0.1264,3941.2,3940.5,0.1264]
[1761015010145,0.1264,3941.2,3940.6,0.4279]
[1761015010548,0.1264,3941.2,3940.7,2.53762021]
[1761015010767,0.1264,3941.2,3940.7,2.53762008]
[1761015010961,0.1264,3941.2,3940.8,0.4279]
[1761015011162,0.1264,3941.2,3940.6,2.53766172]
[1761015011367,0.1264,3941.2,3940.7,0.4279]
[1761015011589,1.8544,3941.2,3940.5,0.1264]
[1761015011752,0.1264,3940.8,3940.2,3.214]
[1761015012139,0.1264,3940.8,3940.3,2.96577509]
[1761015012483,0.1264,3940.8,3940.4,0.4279]
[1761015012984,0.4411,3940.7,3940.6,0.002]
[1761015013153,1.728,3940.8,3940.6,0.002]
[1761015015963,1.728,3940.8,3940.6,0.4692]
[1761015016344,0.04422534,3941.3,3940.7,0.0253762]
[1761015016581,3.202,3941.2,3940.7,0.0253762]
[1761015016759,1.728,3941.1,3940.8,0.4672]
[1761015017374,0.1264,3940.8,3940.6,0.002]
[1761015017555,0.1264,3940.8,3940.6,0.4692]
[1761015018490,0.1264,3940.8,3940.6,3.00686998]
[1761015018661,0.1264,3940.8,3940.7,2.53762021]
[1761015018983,0.1264,3940.8,3940.7,3.00482021]
[1761015019187,0.1264,3940.8,3940.7,0.4672]
[1761015019674,0.1264,3940.8,3940.7,3.00482021]
[1761015020183,0.1264,3940.8,3940.7,0.4672]
[1761015020911,0.1264,3940.8,3940.6,0.002]
[1761015024673,0.5675,3940.8,3940.6,0.002]
[1761015025307,0.1264,3940.8,3940.6,0.002]
[1761015028419,0.1264,3940.8,3940.7,0.4672]
[1761015029823,0.1264,3940.8,3940.6,0.002]
[1761015030122,0.1264,3940.8,3940.6,0.4692]
[1761015030701,0.1264,3940.8,3940.6,3.00687754]
[1761015031212,0.1264,3940.8,3940.7,0.4384]
[1761015031613,0.1264,3940.8,3940.6,0.002]
[1761015031801,0.1264,3940.8,3940.6,2.97808263]
[1761015032199,0.1264,3940.8,3940.6,2.9780347]
[1761015032400,0.1264,3940.8,3940.7,0.4384]
[1761015032627,0.1264,3940.8,3940.7,2.97602021]
[1761015032801,0.1264,3941.4,3940.7,5.76446535]
[1761015033126,0.1264,3941.4,3941.3,0.233]
[1761015033311,0.1264,3941.4,3941.3,2.7702339]
[1761015033826,0.1264,3941.4,3941.3,2.5372339]
[1761015034214,0.1264,3941.4,3941.3,2.56260623]
[1761015034391,0.1264,3941.4,3941.3,2.5372339]
[1761015035191,0.1264,3941.4,3941.3,2.9756339]
[1761015035816,0.1264,3941.4,3941.3,2.5372339]
[1761015036536,0.1264,3941.7,3941.4,2.53712646]
[1761015036716,1.728,3941.6,3941.5,2.53709486]
[1761015036915,1.728,3941.6,3941.5,0.4384]
[1761015037136,1.728,3941.6,3941.3,2.5371906]
[1761015037516,1.728,3941.6,3941.3,2.9755906]
[1761015037915,1.728,3941.6,3941.1,0.233]
[1761015038126,1.728,3941.6,3940.6,0.002]
[1761015038127,1.728,3941.4,3940.6,0.002]
[1761015038438,0.1264,3941.1,3940.6,0.002]
[1761015038630,0.1264,3941.1,3940.8,2.53751077]
[1761015038831,0.1264,3941.1,3940.7,2.97600617]
[1761015039125,0.1264,3941.1,3941.0,2.53742704]
[1761015040234,0.1264,3941.1,3941.0,3.00120131]
[1761015040440,1.728,3941.4,3941.0,0.4384]
[1761015040631,1.8544,3941.4,3940.9,2.53748897]
[1761015040827,1.8544,3941.4,3941.0,2.97582704]
[1761015041032,1.8544,3941.4,3941.1,2.53736003]
[1761015041335,1.8544,3941.4,3941.1,2.97576003]
[1761015043227,1.8544,3941.4,3941.2,2.97568595]
[1761015043741,1.8544,3941.4,3941.3,0.4384]
[1761015044120,1.8544,3941.4,3941.1,2.53735695]
[1761015044316,1.8544,3941.4,3940.8,3.213]
[1761015044517,0.4669,3941.3,3940.8,3.213]
[1761015044748,0.1264,3941.2,3940.8,3.213]
[1761015045044,0.1264,3941.2,3940.7,2.53759746]
[1761015045228,0.1264,3941.2,3940.8,2.53754278]
[1761015046750,0.1264,3941.2,3940.7,2.53759975]
[1761015047045,0.5933,3941.2,3940.7,2.53759975]
[1761015050331,0.4669,3941.1,3940.6,0.002]
[1761015050531,0.1264,3940.8,3940.6,0.002]
[1761015056250,0.5933,3940.8,3940.6,0.002]
[1761015056848,0.4669,3940.7,3940.6,0.002]
[1761015057951,0.1264,3940.8,3940.6,0.002]
[1761015058561,0.5933,3940.8,3940.6,0.002]
[1761015060666,0.1264,3940.8,3940.6,0.002]
[1761015060976,0.4591,3940.7,3940.6,0.002]
[1761015061278,7.93772021,3940.7,3940.6,0.002]
[1761015061436,26.99015721,3940.7,3940.6,0.002]
[1761015061955,20.93758721,3940.7,3940.6,0.002]
[1761015062587,24.69361298,3940.7,3940.6,0.002]
[1761015062883,26.40899468,3940.7,3940.6,0.002]
[1761015063440,31.94025168,3940.7,3940.6,0.002]
[1761015064069,34.77269341,3940.4,3940.3,0.002]
[1761015064276,37.98569341,3940.4,3940.3,0.002]
[1761015064575,38.44479341,3940.4,3940.3,0.002]
[1761015064753,39.21187575,3940.4,3940.3,0.002]
[1761015064953,39.65427563,3940.4,3940.3,0.002]
[1761015066289,32.30773071,3940.4,3940.3,0.002]
[1761015066492,39.635054,3940.4,3940.3,0.002]
[1761015068889,39.95202877,3940.4,3940.3,0.002]
[1761015074700,28.04522935,3940.4,3940.3,0.002]
[1761015075813,31.18984435,3940.4,3940.3,0.002]
[1761015076124,30.09960935,3940.4,3940.3,0.002]
[1761015076803,39.23689235,3940.4,3940.3,0.002]
[1761015078337,34.37767135,3940.4,3940.3,0.002]
[1761015078490,28.31676735,3940.4,3940.3,0.002]
[1761015078686,27.54300435,3940.4,3940.3,0.002]
[1761015079928,39.23689235,3940.4,3940.3,0.002]
[1761015082651,39.55386712,3940.4,3940.3,0.002]
[1761015083025,39.95203329,3940.4,3940.3,0.002]
[1761015086507,39.55386712,3940.4,3940.3,0.002]
[1761015086903,9.55386712,3940.4,3940.3,0.002]
[1761015087146,39.55386712,3940.4,3940.3,0.002]
[1761015088045,9.55386712,3940.4,3940.3,0.002]
[1761015088251,39.55386712,3940.4,3940.3,0.002]
[1761015088452,39.55486712,3940.4,3940.3,0.002]
[1761015089172,39.51062889,3940.4,3940.3,0.002]
[1761015089371,22.81154906,3940.0,3939.9,0.002]
[1761015089529,28.68683306,3940.0,3939.9,0.002]
[1761015089728,28.13743306,3940.0,3939.9,0.002]
[1761015090448,26.98769106,3940.0,3939.9,0.002]
[1761015090648,7.89858806,3940.0,3939.9,0.002]
[1761015090971,10.31472906,3940.0,3939.9,0.4338]
[1761015091276,14.86773306,3940.0,3939.9,0.4338]
[1761015091478,11.95130106,3940.0,3939.9,0.4338]
[1761015092356,13.01716806,3940.0,3939.9,0.4338]
[1761015092938,13.01716806,3940.0,3939.9,0.002]
[1761015093157,14.95243006,3940.0,3939.9,0.002]
[1761015093352,14.95243006,3940.0,3939.9,0.4338]
[1761015093555,13.11119906,3940.0,3939.9,0.4338]
[1761015093734,13.15543567,3940.0,3939.9,0.4338]
[1761015093936,12.89446462,3940.0,3939.9,0.4338]
[1761015094241,10.54282862,3940.0,3939.9,0.4338]
[1761015094446,7.92243862,3940.0,3939.9,0.4338]
[1761015095169,14.29620562,3940.0,3939.9,0.4338]
[1761015095865,12.87087962,3940.0,3939.9,0.4338]
[1761015096281,12.89701562,3940.0,3939.9,0.4338]
[1761015096580,10.54900562,3940.0,3939.9,0.4338]
[1761015096753,10.28852262,3940.0,3939.9,0.4338]
[1761015097282,10.78385962,3940.0,3939.9,0.002]
[1761015097574,12.16037025,3940.0,3939.9,0.002]
[1761015097733,10.78385962,3940.0,3939.9,0.002]
[1761015097940,10.78385962,3940.0,3939.9,0.4338]
[1761015098336,13.82657462,3940.0,3939.9,0.4338]
[1761015098748,9.51779462,3940.0,3939.9,0.4338]
[1761015099152,11.92734762,3940.0,3939.9,0.4338]
[1761015099357,7.92243862,3940.0,3939.9,0.4338]
[1761015099553,11.77406967,3940.0,3939.9,0.4338]
[1761015100347,12.58116967,3940.0,3939.9,0.4338]
[1761015101375,15.25699767,3940.0,3939.9,0.002]
[1761015101675,18.30364688,3940.0,3939.9,0.002]
[1761015102355,33.36784288,3940.0,3939.9,0.002]
[1761015102676,32.89315788,3940.0,3939.9,0.002]
[1761015103577,32.88552788,3940.0,3939.9,0.002]
[1761015104351,33.32833388,3940.0,3939.9,0.002]
[1761015105481,40.26613888,3940.0,3939.9,0.002]
[1761015105974,37.13113488,3940.0,3939.9,0.002]
[1761015106478,10.57095688,3940.0,3939.9,0.002]
[1761015106796,32.13791876,3939.6,3939.5,0.002]
[1761015106961,2.5390377,3938.5,3938.4,0.2139]
[1761015107162,16.5919257,3938.5,3938.4,0.2139]
[1761015107372,7.4810377,3938.5,3938.4,0.6457]
[1761015107587,13.8577547,3938.5,3938.4,0.6457]
[1761015108300,13.4032177,3938.5,3938.4,0.6457]
[1761015108485,7.049232,3938.5,3938.4,0.6457]
[1761015108686,7.527428,3938.5,3938.4,0.6457]
[1761015109003,4.942,3938.5,3938.4,0.6457]
[1761015109168,8.245426,3938.5,3938.4,0.6457]
[1761015109494,1.728,3938.5,3938.4,0.6457]
[1761015109692,9.7341377,3938.5,3938.4,0.6457]
[1761015109894,7.1951,3938.5,3938.4,0.6457]
[1761015110095,9.7341377,3938.5,3938.4,0.6457]
[1761015110295,14.831736,3938.3,3938.0,0.233]
[1761015110516,1.728,3938.1,3938.0,0.233]
[1761015111193,1.728,3938.1,3938.0,0.6648]
[1761015114589,0.04425608,3938.8,3938.0,3.20416008]
[1761015114793,1.116,3938.7,3938.2,2.53921532]
[1761015115194,1.116,3938.7,3938.3,0.4318]
[1761015116490,0.04425608,3938.8,3938.3,0.4318]
[1761015116789,1.728,3938.6,3938.3,0.4318]
[1761015117522,1.728,3938.6,3938.4,2.53908761]
[1761015118032,1.728,3938.6,3938.5,0.4318]
[1761015118424,0.04425608,3938.8,3938.5,2.9708377]
[1761015118721,1.728,3938.6,3938.5,3.52184943]
[1761015118921,1.728,3938.7,3938.6,0.4318]
[1761015119123,3.214,3938.8,3938.6,0.4318]
[1761015119505,1.728,3938.7,3938.6,0.4318]
[1761015119904,1.728,3938.5,3938.2,0.4318]
[1761015120198,1.728,3938.4,3938.3,0.4318]
[1761015121407,0.1264,3938.3,3938.0,0.233]
[1761015121602,0.1264,3938.1,3938.0,0.233]
[1761015121832,1.8544,3938.1,3938.0,0.233]
[1761015122026,1.8544,3938.1,3937.5,0.4732]
[1761015122209,0.1264,3937.6,3937.5,0.4732]
[1761015122631,0.1264,3937.6,3937.5,3.01288253]
[1761015122840,0.04425585,3938.9,3937.6,2.53961804]
[1761015123144,0.04425585,3938.9,3938.8,0.226]
[1761015123145,0.477,3938.9,3938.8,0.226]
[1761015123323,0.477,3938.9,3938.8,0.6992]